bitfinex/quotes_SOLUSD_20240918
["timestamp","ask_amount","ask_price","bid_price","bid_amount"]
[1726625330018,7.6186,131.26,131.21,0.2577047]
[1726625330428,20.0,131.25,131.21,0.2577047]
[1726625330929,27.6191,131.25,131.21,0.2577047]
[1726625332836,20.0,131.23,131.21,0.2577047]
[1726625333441,20.0,131.24,131.21,0.2577047]
[1726625338637,20.0,131.25,131.21,0.2577047]
[1726625341522,20.0,131.26,131.21,0.2577047]
[1726625341726,20.0,131.27,131.21,0.2577047]
[1726625342234,7.6179,131.27,131.21,0.2577047]
[1726625342429,20.0,131.26,131.21,0.2577047]
[1726625342818,20.0,131.28,131.21,0.2577047]
[1726625343135,20.0,131.26,131.21,0.2577047]
[1726625344017,23.776884,131.27,131.21,0.2577047]
[1726625344220,20.0,131.26,131.21,0.2577047]
[1726625344420,20.0,131.24,131.21,0.2577047]
[1726625346119,15.7016,131.27,131.21,0.2577047]
[1726625346120,20.0,131.23,131.21,0.2577047]
[1726625346327,20.0,131.24,131.21,0.2577047]
[1726625346518,27.6207,131.22,131.21,0.2577047]
[1726625353622,20.0,131.22,131.21,0.2577047]
[1726625355051,27.6207,131.22,131.21,0.2577047]
[1726625357165,20.0,131.22,131.21,0.2577047]
[1726625359143,27.6207,131.22,131.21,0.2577047]
[1726625362562,51.397584,131.22,131.21,0.2577047]
[1726625363741,27.6207,131.22,131.21,0.2577047]
[1726625365356,20.0,131.22,131.21,0.2577047]
[1726625366643,23.3196,131.27,131.21,0.2577047]
[1726625366969,7.618,131.27,131.21,0.2577047]
[1726625367471,7.6174,131.28,131.21,0.2577047]
[1726625367649,7.6174,131.28,131.21,1.7817296]
[1726625367840,7.6168,131.29,131.22,12.73684567]
[1726625368042,7.6161,131.3,131.22,12.73684567]
[1726625368456,7.6161,131.3,131.23,1.5237694]
[1726625368766,15.3482,131.33,131.25,16.3491]
[1726625369364,7.6151,131.32,131.25,16.3491]
[1726625369939,20.0,131.3,131.25,16.3491]
[1726625374779,20.0,131.31,131.26,0.12549]
[1726625374951,20.0,131.31,131.26,14.13483078]
[1726625375155,20.0,131.33,131.26,14.13483078]
[1726625375455,7.6144,131.33,131.26,14.13483078]
[1726625375755,20.0,131.32,131.26,0.25098]
[1726625377257,27.6149,131.32,131.26,0.25098]
[1726625385286,20.0,131.3,131.26,0.25098]
[1726625385454,20.0,131.32,131.26,36.51372967]
[1726625385664,7.614,131.34,131.26,38.03707433]
[1726625385980,7.6144,131.33,131.26,36.51372967]
[1726625386887,20.0,131.32,131.26,36.51372967]
[1726625388495,20.4958945,131.35,131.28,12.73684567]
[1726625388682,20.4958945,131.35,131.3,15.1901]
[1726625389826,20.4958945,131.35,131.31,0.25098]
[1726625389827,0.4958945,131.35,131.31,0.25098]
[1726625392279,0.4958945,131.35,131.31,24.027864]
[1726625392484,0.4958945,131.35,131.31,36.51372967]
[1726625396812,0.4958945,131.35,131.3,15.1901]
[1726625396813,0.4958945,131.35,131.33,24.027864]
[1726625396994,0.4958945,131.35,131.33,0.25098]
[1726625397517,0.4958945,131.35,131.32,0.25098]
[1726625399018,0.4958945,131.35,131.31,24.027864]
[1726625399522,0.4958945,131.35,131.31,36.51372967]
[1726625399691,0.4958945,131.35,131.33,0.25098]
[1726625400589,0.4958945,131.35,131.32,0.25098]
[1726625401226,0.4958945,131.35,131.32,12.73684567]
[1726625401515,0.4958945,131.35,131.32,0.25098]
[1726625407030,0.4958945,131.35,131.32,12.73684567]
[1726625408526,0.4958945,131.35,131.32,0.25098]
[1726625411610,0.4958945,131.35,131.32,12.73684567]
[1726625411820,0.4958945,131.35,131.34,12.73684567]
[1726625412727,0.4958945,131.35,131.34,36.51372967]
[1726625413111,0.4958945,131.35,131.34,24.027864]
[1726625414025,0.4958945,131.35,131.34,0.25098]
[1726625417442,0.4958945,131.35,131.31,0.12549]
[1726625417739,0.4958945,131.35,131.31,12.61135567]
[1726625418045,0.4958945,131.35,131.33,0.12549]
[1726625418616,0.4958945,131.35,131.33,12.61135567]
[1726625418843,0.4958945,131.35,131.34,0.12549]
[1726625419028,0.4958945,131.35,131.34,12.73684567]
[1726625419428,0.4958945,131.35,131.34,36.51372967]
[1726625422453,0.4958945,131.35,131.34,24.027864]
[1726625428941,0.4958945,131.35,131.34,0.25098]
[1726625429465,0.4958945,131.35,131.33,0.25098]
[1726625430361,0.4958945,131.35,131.33,24.027864]
[1726625431352,0.4958945,131.35,131.33,36.51372967]
[1726625431870,0.4958945,131.35,131.34,1.64801604]
[1726625432186,0.4958945,131.35,131.34,0.12549]
[1726625434164,0.4958945,131.35,131.34,38.03615393]
[1726625435456,0.4958945,131.35,131.34,24.027864]
[1726625436156,0.4958945,131.35,131.33,24.027864]
[1726625437052,0.4958945,131.35,131.33,36.51372967]
[1726625438068,0.4958945,131.35,131.34,12.48586567]
[1726625438376,0.4958945,131.35,131.34,36.51372967]
[1726625439672,0.4958945,131.35,131.34,24.027864]
[1726625439859,0.4958945,131.35,131.32,12.48586567]
[1726625440059,0.4958945,131.35,131.33,23.776884]
[1726625441282,0.4958945,131.35,131.34,0.12549]
[1726625441580,0.4958945,131.35,131.34,0.25098]
[1726625446276,0.4958945,131.35,131.34,12.73684567]
[1726625446793,0.4958945,131.35,131.34,38.03614413]
[1726625447003,0.4958945,131.35,131.34,36.51372967]
[1726625449466,0.4958945,131.35,131.34,24.027864]
[1726625449789,0.4958945,131.35,131.34,0.12549]
[1726625449997,0.4958945,131.35,131.32,23.902374]
[1726625450673,0.4958945,131.35,131.32,12.61135567]
[1726625450875,0.4958945,131.35,131.33,0.12549]
[1726625452695,0.4958945,131.35,131.34,0.12549]
[1726625461606,0.4958945,131.35,131.26,35.2033]
[1726625461806,0.4958945,131.35,131.27,20.0]
[1726625461996,0.4958945,131.35,131.29,12.48586567]
[1726625462813,16.8480945,131.35,131.29,12.48586567]
[1726625462994,16.8480945,131.35,131.3,24.027864]
[1726625463203,20.0,131.34,131.27,7.9576586]
[1726625463418,7.615,131.32,131.23,15.459]
[1726625463720,6.6552,131.33,131.27,12.48586567]
[1726625463912,14.2696,131.33,131.26,12.48586567]
[1726625465109,14.2696,131.33,131.27,24.027864]
[1726625468219,6.6552,131.33,131.27,36.51372967]
[1726625470911,6.6552,131.33,131.26,24.027864]
[1726625472458,7.615,131.32,131.26,24.027864]
[1726625472612,14.2696,131.33,131.26,36.51372967]
[1726625477624,14.2696,131.33,131.27,12.48586567]
[1726625477819,14.2696,131.33,131.28,0.25098]
[1726625480049,6.6552,131.33,131.28,24.027864]
[1726625482433,6.6552,131.33,131.29,12.48586567]
[1726625482639,6.6552,131.33,131.31,0.25098]
[1726625482950,16.8480945,131.35,131.31,0.25098]
[1726625483532,16.8480945,131.35,131.32,12.48586567]
[1726625483764,16.8480945,131.35,131.33,0.25098]
[1726625485453,16.8480945,131.35,131.32,24.027864]
[1726625487354,16.8480945,131.35,131.32,36.51372967]
[1726625487542,0.4958945,131.35,131.33,14.00850078]
[1726625487737,0.4958945,131.35,131.34,0.25098]
[1726625488259,0.4958945,131.35,131.34,36.51372967]
[1726625490457,0.4958945,131.35,131.34,38.51372967]
[1726625494562,0.4958945,131.35,131.34,58.51372967]
[1726625494746,0.2577047,131.39,131.34,58.51372967]
[1726625494945,0.2577047,131.39,131.38,36.51372967]
[1726625499155,0.2577047,131.39,131.38,56.51372967]
[1726625499465,0.2577047,131.39,131.38,36.51372967]
[1726625499872,0.2577047,131.39,131.38,56.51372967]
[1726625500044,0.2577047,131.39,131.38,58.03539559]
[1726625500371,0.4958945,131.43,131.39,24.027864]
[1726625500578,0.4958945,131.43,131.42,36.51372967]
[1726625503275,0.4958945,131.43,131.42,24.027864]
[1726625507570,0.4958945,131.43,131.42,36.51372967]
[1726625516473,0.4958945,131.43,131.42,38.51372967]
[1726625527197,0.4958945,131.43,131.42,26.027864]
[1726625527399,0.4958945,131.43,131.42,38.51372967]
[1726625528523,0.4958945,131.43,131.42,2.0]
[1726625547726,0.4958945,131.43,131.42,2.12549]
[1726625548035,0.4958945,131.43,131.42,2.25098]
[1726625549627,0.4958945,131.43,131.42,2.0]
[1726625554246,0.4958945,131.43,131.42,2.25098]
[1726625558328,0.4958945,131.43,131.42,2.0]
[1726625562157,0.4958945,131.43,131.39,12.48586567]
[1726625562364,0.4958945,131.43,131.4,0.25098]
[1726625565558,0.4958945,131.43,131.4,36.51372967]
[1726625565736,0.4958945,131.43,131.4,24.027864]
[1726625572443,0.4958945,131.43,131.4,0.25098]
[1726625573450,0.4958945,131.43,131.4,0.12549]
[1726625575285,8.1044945,131.43,131.36,17.47432781]
[1726625575579,8.1044945,131.43,131.36,9.52995567]
[1726625576567,8.1044945,131.43,131.37,24.027864]
[1726625578045,7.6092,131.42,131.37,0.25098]
[1726625578461,8.1045945,131.43,131.37,0.25098]
[1726625579567,0.4958945,131.43,131.39,0.25098]
[1726625582876,0.4958945,131.43,131.39,12.73684567]
[1726625583786,0.4958945,131.43,131.39,0.25098]
[1726625590985,0.4958945,131.43,131.39,12.73684567]
[1726625593995,0.4958945,131.43,131.41,24.027864]
[1726625601414,0.4958945,131.43,131.41,0.25098]
[1726625605734,0.4958945,131.43,131.34,25.24123403]
[1726625605735,8.1045945,131.43,131.34,25.24123403]
[1726625606043,0.4958945,131.43,131.37,9.52985738]
[1726625606229,0.4958945,131.43,131.36,12.48586567]
[1726625606933,0.4958945,131.43,131.37,0.25098]
[1726625607125,0.4958945,131.43,131.37,0.12549]
[1726625608531,0.4958945,131.43,131.37,24.027864]
[1726625608731,0.4958945,131.43,131.39,24.027864]
[1726625609811,0.4958945,131.43,131.38,0.25098]
[1726625610015,0.4958945,131.43,131.37,24.027864]
[1726625611316,0.4958945,131.43,131.39,2.0]
[1726625625462,0.4958945,131.43,131.4,0.12549]
[1726625627538,0.4958945,131.43,131.4,0.25098]
[1726625632263,0.4958945,131.43,131.39,2.0]
[1726625632452,16.4948,131.42,131.39,2.0]
[1726625637858,16.4948,131.42,131.4,0.25098]
[1726625640170,16.4948,131.42,131.39,2.0]
[1726625643175,0.4958945,131.43,131.4,0.25098]
[1726625660304,0.4958945,131.43,131.41,12.48586567]
[1726625660493,0.4958945,131.43,131.42,1.77263677]
[1726625661409,0.4958945,131.43,131.42,14.25850244]
[1726625661577,0.4958945,131.43,131.42,36.51372967]
[1726625661779,0.4958945,131.43,131.42,0.25098]
[1726625662082,0.4958945,131.43,131.41,0.25098]
[1726625667208,0.4958945,131.43,131.41,12.73684567]
[1726625667803,0.4958945,131.43,131.42,24.027864]
[1726625668394,0.4958945,131.43,131.42,0.25098]
[1726625668798,0.4958945,131.43,131.39,2.0]
[1726625668979,0.4958945,131.43,131.4,0.12549]
[1726625671915,0.4958945,131.43,131.4,0.25098]
[1726625672083,0.4958945,131.43,131.4,36.51372967]
[1726625672508,0.4958945,131.43,131.42,0.25098]
[1726625673085,0.4958945,131.43,131.42,24.027864]
[1726625673393,0.4958945,131.43,131.42,36.51372967]
[1726625676301,0.4958945,131.43,131.42,24.027864]
[1726625677606,0.4958945,131.43,131.42,0.25098]
[1726625677912,0.4958945,131.43,131.41,24.027864]
[1726625679201,0.4958945,131.43,131.42,24.027864]
[1726625682303,0.4958945,131.43,131.42,0.25098]
[1726625682621,0.4958945,131.43,131.42,58.0353725]
[1726625683118,0.4958945,131.43,131.42,56.51372967]
[1726625687400,0.2577047,131.47,131.42,56.51372967]
[1726625687401,0.2577047,131.47,131.43,44.027864]
[1726625687624,0.2577047,131.47,131.46,12.73684567]
[1726625687824,0.2577047,131.47,131.46,36.51372967]
[1726625688324,0.2577047,131.47,131.46,24.027864]
[1726625690598,0.2577047,131.47,131.45,24.027864]
[1726625692306,0.2577047,131.47,131.45,0.25098]
[1726625699534,0.2577047,131.47,131.43,23.902374]
[1726625700835,0.2577047,131.47,131.44,0.12549]
[1726625708323,0.2577047,131.47,131.44,12.61135567]
[1726625708515,0.2577047,131.47,131.44,0.12549]
[1726625709739,0.2577047,131.47,131.44,1.64681681]
[1726625709912,0.2577047,131.47,131.45,0.12549]
[1726625710631,0.2577047,131.47,131.46,0.25098]
[1726625711113,0.2577047,131.47,131.46,12.73684567]
[1726625711632,0.2577047,131.47,131.46,36.51372967]
[1726625715641,0.2577047,131.47,131.46,56.51372967]
[1726625723525,0.2577047,131.47,131.46,44.027864]
[1726625723733,0.2577047,131.47,131.46,56.51372967]
[1726625729332,0.2577047,131.47,131.46,32.48586567]
[1726625729649,0.2577047,131.47,131.43,12.48586567]
[1726625729859,6.9030047,131.47,131.42,12.48586567]
[1726625731149,6.9030047,131.47,131.43,23.776884]
[1726625731353,6.9030047,131.47,131.4,20.41941291]
[1726625731579,6.9030047,131.47,131.4,12.48586567]
[1726625732165,6.9030047,131.47,131.39,14.48586567]
[1726625732366,15.7609,131.46,131.39,2.0]
[1726625732773,27.6075,131.45,131.39,2.0]
[1726625733772,20.0,131.45,131.39,2.0]
[1726625733971,20.0,131.45,131.4,0.25098]
[1726625734484,23.3678,131.46,131.4,0.25098]
[1726625734485,15.7609,131.46,131.43,0.25098]
[1726625735301,15.7609,131.46,131.45,0.25098]
[1726625735979,15.7609,131.46,131.42,24.027864]
[1726625736173,15.7609,131.46,131.42,36.51372967]
[1726625738077,0.2577047,131.47,131.45,12.48586567]
[1726625738290,0.2577047,131.47,131.46,38.03479181]
[1726625738462,0.2577047,131.47,131.46,36.51372967]
[1726625738662,0.2577047,131.47,131.46,56.51372967]
[1726625742989,0.2577047,131.47,131.46,20.0]
[1726625743372,0.2577047,131.47,131.46,32.48586567]
[1726625743770,0.2577047,131.47,131.46,20.0]
[1726625744291,0.2577047,131.47,131.46,44.027864]
[1726625744466,0.2577047,131.47,131.46,0.12549]
[1726625744662,0.2577047,131.47,131.42,12.48586567]
[1726625744968,6.4483047,131.47,131.42,12.48586567]
[1726625746069,6.4483047,131.47,131.43,24.027864]
[1726625746283,6.4483047,131.47,131.43,23.902374]
[1726625747001,6.4483047,131.47,131.43,36.38823967]
[1726625747694,6.4483047,131.47,131.44,0.12549]
[1726625748168,6.4483047,131.47,131.44,0.25098]
[1726625749189,0.2577047,131.47,131.46,19.72980217]
[1726625749497,0.2577047,131.47,131.46,43.50668617]
[1726625749996,0.2577047,131.47,131.46,0.25098]
[1726625754681,0.2577047,131.47,131.42,19.47882217]
[1726625755001,0.2577047,131.47,131.43,20.0]
[1726625755576,0.2577047,131.47,131.41,9.43530409]
[1726625755779,0.2577047,131.47,131.41,20.0]
[1726625756880,0.2577047,131.47,131.44,19.47882217]
[1726625757082,0.2577047,131.47,131.45,24.027864]
[1726625759002,0.2577047,131.47,131.44,24.027864]
[1726625761485,0.2577047,131.47,131.44,0.25098]
[1726625762108,6.1443,131.45,131.39,2.0]
[1726625763192,6.1443,131.45,131.4,24.027864]
[1726625771811,6.1443,131.45,131.39,2.0]
[1726625773117,6.1443,131.45,131.41,0.25098]
[1726625782626,6.1443,131.45,131.43,0.25098]
[1726625782822,15.8343,131.46,131.43,0.25098]
[1726625783015,0.2577047,131.47,131.45,0.25098]
[1726625783214,0.2577047,131.47,131.46,0.25098]
[1726625783422,0.2577047,131.47,131.46,24.027864]
[1726625783607,0.2577047,131.47,131.46,25.54888232]
[1726625784025,0.2577047,131.47,131.46,24.027864]
[1726625785205,0.2577047,131.47,131.46,0.25098]
[1726625788631,16.0586047,131.5,131.46,0.25098]
[1726625789634,16.0586047,131.5,131.44,0.12549]
[1726625792234,20.0,131.49,131.41,12.4668016]
[1726625792543,16.0586047,131.5,131.4,12.4668016]
[1726625792544,20.0,131.47,131.4,12.4668016]
[1726625792723,20.0,131.47,131.39,14.4668016]
[1726625793238,15.4338,131.46,131.39,2.0]
[1726625793440,15.4338,131.46,131.39,14.4668016]
[1726625793625,15.4338,131.46,131.4,12.4668016]
[1726625794122,15.4338,131.46,131.39,2.0]
[1726625794343,15.4338,131.46,131.4,24.027864]
[1726625795920,15.4338,131.46,131.4,0.12549]
[1726625797121,15.4338,131.46,131.4,24.027864]
[1726625803439,15.4338,131.46,131.42,0.12549]
[1726625803643,15.4338,131.46,131.42,24.027864]
[1726625803950,15.4338,131.46,131.42,0.25098]
[1726625804129,15.4338,131.46,131.42,1.77245658]
[1726625804327,15.4338,131.46,131.43,23.776884]
[1726625804545,15.4338,131.46,131.44,0.25098]
[1726625808954,15.4338,131.46,131.4,24.027864]
[1726625811568,15.4338,131.46,131.39,2.0]
[1726625811745,26.0188,131.45,131.39,2.0]
[1726625813069,26.0188,131.45,131.4,0.25098]
[1726625814062,26.0188,131.45,131.4,24.027864]
[1726625821484,33.6262,131.45,131.39,2.0]
[1726625821656,15.4797,131.44,131.39,2.0]
[1726625824379,23.0878,131.44,131.39,2.0]
[1726625829179,15.4797,131.44,131.39,2.0]
[1726625829370,15.48,131.41,131.39,2.0]
[1726625831784,6.0555,131.43,131.39,2.0]
[1726625837095,6.0555,131.43,131.4,0.12549]
[1726625838185,6.0555,131.43,131.39,2.0]
[1726625839370,13.6642,131.43,131.39,2.0]
[1726625840194,6.0555,131.43,131.39,2.0]
[1726625845593,13.6641,131.43,131.39,2.0]
[1726625847277,6.0555,131.43,131.39,2.0]
[1726625851098,13.6642,131.43,131.39,2.0]
[1726625851404,20.0,131.42,131.39,2.0]
[1726625851774,7.6098,131.41,131.39,2.0]
[1726625852778,27.6103,131.4,131.39,2.0]
[1726625853773,20.0,131.4,131.39,2.0]
[1726625853978,6.0555,131.43,131.39,2.0]
[1726625854295,20.0,131.42,131.39,2.0]
[1726625856088,16.0973,131.44,131.39,2.0]
[1726625856506,6.6319,131.46,131.4,0.25098]
[1726625856714,6.6319,131.46,131.4,36.50841769]
[1726625856878,6.6319,131.46,131.4,24.027864]
[1726625857908,20.0,131.45,131.4,24.027864]
[1726625858707,6.6319,131.46,131.4,36.50841769]
[1726625859006,15.2458,131.47,131.4,38.03028963]
[1726625860005,20.0,131.48,131.42,24.027864]
[1726625860590,20.0,131.48,131.41,24.027864]
[1726625862815,27.6058,131.48,131.41,0.25098]
[1726625863113,7.6064,131.47,131.41,0.25098]
[1726625863485,20.0,131.46,131.41,0.25098]
[1726625863912,20.0,131.46,131.39,18.031]
[1726625863913,27.6069,131.46,131.39,18.031]
[1726625864083,27.6069,131.46,131.39,2.0]
[1726625864084,36.4203,131.46,131.39,2.0]
[1726625864707,20.0,131.44,131.39,2.0]
[1726625865401,20.0,131.45,131.39,2.0]
[1726625866791,7.6086,131.43,131.39,2.0]
[1726625867005,20.0,131.42,131.39,2.0]
[1726625869396,27.6081,131.44,131.39,2.0]
[1726625870302,7.6088,131.43,131.39,2.0]
[1726625870635,20.0,131.42,131.39,2.0]
[1726625870801,27.6092,131.42,131.39,2.0]
[1726625871197,7.6087,131.43,131.39,2.0]
[1726625871499,27.6092,131.42,131.39,2.0]
[1726625871906,20.0,131.41,131.39,2.0]
[1726625877223,27.6103,131.4,131.39,2.0]
[1726625879730,20.0,131.4,131.39,2.0]
[1726625882921,22.6481,131.45,131.39,2.0]
[1726625883232,20.0,131.44,131.39,2.0]
[1726625883441,27.6081,131.44,131.39,2.0]
[1726625883938,7.6081,131.44,131.39,2.0]
[1726625884129,22.6481,131.45,131.39,2.0]
[1726625884447,30.256,131.45,131.39,2.0]
[1726625884739,22.6481,131.45,131.39,2.0]
[1726625884915,16.1192,131.45,131.39,2.0]
[1726625885644,7.6069,131.46,131.39,2.0]
[1726625886026,20.0,131.45,131.39,2.0]
[1726625887440,27.6063,131.47,131.4,24.027864]
[1726625889523,20.0,131.47,131.39,2.0]
[1726625890041,20.0,131.45,131.39,2.0]
[1726625895418,27.6075,131.45,131.39,2.0]
[1726625895615,7.6075,131.45,131.39,2.0]
[1726625895922,20.0,131.44,131.39,2.0]
[1726625896957,20.0,131.45,131.4,24.027864]
[1726625898148,27.6064,131.47,131.4,24.027864]
[1726625898646,25.91231928,131.5,131.43,12.48055369]
[1726625898647,14.50451928,131.5,131.43,12.48055369]
[1726625898825,7.6046,131.5,131.44,24.027864]
[1726625899145,28.26831928,131.53,131.44,24.027864]
[1726625899446,7.6048,131.5,131.44,24.027864]
[1726625899947,20.0,131.49,131.44,24.027864]
[1726625900641,28.26831928,131.53,131.44,36.50841769]
[1726625900847,7.6035,131.52,131.46,24.027864]
[1726625901018,7.6035,131.52,131.45,16.1609]
[1726625901224,8.0710685,131.51,131.45,16.1609]
[1726625902540,20.0,131.5,131.45,16.1609]
[1726625903354,0.4669685,131.51,131.46,24.027864]
[1726625906440,0.4669685,131.51,131.46,44.17907128]
[1726625906641,0.4669685,131.51,131.46,42.65791769]
[1726625906861,0.4669685,131.51,131.46,30.177364]
[1726625907973,0.4669685,131.51,131.46,32.177364]
[1726625911956,8.0710685,131.51,131.46,8.1495]
[1726625912161,20.0,131.5,131.46,2.0]
[1726625913167,0.4669685,131.51,131.46,2.0]
[1726625913375,7.6047,131.5,131.46,2.0]
[1726625925251,0.4669685,131.51,131.46,2.0]
[1726625925569,20.0,131.5,131.46,2.0]
[1726625928477,20.4669685,131.51,131.46,2.0]
[1726625930498,8.0711685,131.51,131.46,2.0]
[1726625933790,7.6046,131.5,131.46,2.0]
[1726625934856,8.0710685,131.51,131.46,2.0]
[1726625935062,20.0,131.5,131.46,2.0]
[1726625938356,20.4669685,131.51,131.47,0.25098]
[1726625938560,0.4669685,131.51,131.47,0.25098]
[1726625938760,0.4669685,131.51,131.47,24.027864]
[1726625939057,0.4669685,131.51,131.47,38.02939336]
[1726625939261,0.4669685,131.51,131.49,0.12549]
[1726625940257,0.4669685,131.51,131.48,0.12549]
[1726625940968,0.4669685,131.51,131.47,0.12549]
[1726625942185,0.4669685,131.51,131.46,8.1485]
[1726625942186,8.0708685,131.51,131.46,2.0]
[1726625953472,0.4669685,131.51,131.46,2.0]
[1726625953796,8.0709685,131.51,131.46,2.0]
[1726625957601,0.4669685,131.51,131.46,2.0]
[1726625957789,20.4669685,131.51,131.46,2.0]
[1726625958703,8.0710685,131.51,131.46,2.0]
[1726625959100,0.4669685,131.51,131.46,2.0]
[1726625959699,20.0,131.49,131.46,2.0]
[1726625960385,27.6062,131.47,131.46,2.0]
[1726625962505,20.0,131.47,131.46,2.0]
[1726625966701,7.6052,131.49,131.46,2.0]
[1726625966901,20.0,131.48,131.46,2.0]
[1726625977699,27.6062,131.47,131.46,2.0]
[1726625986736,20.0,131.47,131.46,2.0]
[1726625989043,7.6059,131.48,131.46,2.0]
[1726625990445,20.0,131.48,131.46,2.0]
[1726625990756,20.0,131.5,131.46,2.0]
[1726625990951,27.6047,131.5,131.46,2.0]
[1726625993244,7.6052,131.49,131.46,2.0]
[1726625994547,20.0,131.49,131.46,2.0]
[1726625995437,20.0,131.5,131.46,2.0]
[1726625995635,0.4669685,131.51,131.47,25.54903839]
[1726625995846,0.4669685,131.51,131.47,24.027864]
[1726625996049,20.0,131.5,131.46,2.0]
[1726625996246,27.6046,131.5,131.46,2.0]
[1726625998542,20.4669685,131.51,131.46,2.0]
[1726625998748,27.6062,131.47,131.46,2.0]
[1726626008151,27.6062,131.47,131.39,16.3478]
[1726626008152,20.0,131.46,131.39,16.3478]
[1726626008353,7.6099,131.41,131.37,0.2577047]
[1726626010542,7.6105,131.4,131.37,0.2577047]
[1726626010849,20.0,131.44,131.37,0.2577047]
[1726626010850,23.902374,131.42,131.37,0.2577047]
[1726626011064,20.0,131.41,131.37,0.2577047]
[1726626011375,27.6115,131.38,131.37,0.2577047]
[1726626017367,20.0,131.34,131.33,0.2577047]
[1726626018445,27.6138,131.34,131.33,0.2577047]
[1726626019790,7.6151,131.32,131.29,0.2577047]
[1726626020288,7.616,131.31,131.29,0.2577047]
[1726626020463,20.0,131.32,131.29,0.2577047]
[1726626020787,7.6156,131.31,131.29,0.2577047]
[1726626021766,27.615,131.32,131.29,0.2577047]
[1726626032202,7.6145,131.33,131.29,0.2577047]
[1726626032401,20.0,131.32,131.29,0.2577047]
[1726626032695,27.6154,131.32,131.29,0.2577047]
[1726626035706,20.0,131.34,131.29,0.2577047]
[1726626035895,27.6134,131.35,131.29,0.2577047]
[1726626036783,22.94855215,131.37,131.29,0.2577047]
[1726626036983,27.6136,131.35,131.29,0.2577047]
[1726626037191,20.0,131.35,131.29,0.2577047]
[1726626037883,1.73639912,131.36,131.29,0.2577047]
[1726626038290,7.6144,131.33,131.29,0.2577047]
[1726626038599,7.6139,131.34,131.29,0.2577047]
[1726626038981,20.0,131.33,131.29,0.2577047]
[1726626043127,20.0,131.31,131.29,0.2577047]
[1726626047012,7.6145,131.33,131.29,0.2577047]
[1726626047217,27.6139,131.34,131.29,0.2577047]
[1726626054619,2.99479328,131.36,131.29,0.2577047]
[1726626054620,20.0,131.37,131.29,0.2577047]
[1726626054925,20.0,131.35,131.29,6.5022047]
[1726626055604,20.0,131.35,131.29,8.02530746]
[1726626056297,20.0,131.35,131.3,24.027864]
[1726626056527,20.0,131.36,131.31,15.2367]
[1726626056900,20.0,131.37,131.31,15.2367]
[1726626057099,7.6116,131.38,131.31,15.2367]
[1726626058010,7.611,131.39,131.31,15.2367]
[1726626058512,20.0,131.38,131.31,15.2367]
[1726626067221,20.0,131.38,131.32,24.027864]
[1726626067431,7.6104,131.4,131.32,36.50841769]
[1726626067432,20.0,131.39,131.32,36.50841769]
[1726626069226,20.0,131.39,131.32,24.027864]
[1726626070631,20.0,131.4,131.33,14.00327846]
[1726626070821,23.9435047,131.43,131.35,16.59798]
[1726626071030,0.2577047,131.43,131.35,16.59798]
[1726626071425,0.2577047,131.43,131.37,0.25098]
[1726626074742,0.2577047,131.43,131.37,12.73153369]
[1726626074914,0.2577047,131.43,131.38,1.52203684]
[1726626075613,0.2577047,131.43,131.38,23.776884]
[1726626075836,0.2577047,131.43,131.37,0.25098]
[1726626076836,20.2577047,131.43,131.37,0.25098]
[1726626083820,20.2577047,131.43,131.36,23.776884]
[1726626084022,7.6092,131.42,131.36,0.25098]
[1726626084326,20.0,131.41,131.36,0.25098]
[1726626084923,20.0,131.42,131.36,0.25098]
[1726626085140,20.0,131.42,131.36,24.027864]
[1726626085323,0.2577047,131.43,131.37,1.52218347]
[1726626085522,0.2577047,131.43,131.37,14.00273716]
[1726626085849,0.2577047,131.43,131.37,12.48055369]
[1726626086034,0.2577047,131.43,131.36,36.50841769]
[1726626086231,20.0,131.42,131.36,0.25098]
[1726626087029,27.6093,131.42,131.35,16.347]